Cogmind - Beta 14 @@@ ROGUE MODE // 2025.01.18 @ 01:21:28 Player: naththebg Result: Destroyed by G-50 Soldier with Heavy Laser Performance ------------- Evolutions (5) 2500 Regions Visited (13) 2600 Robots Destroyed (191) 955 Value Destroyed (6977) 6977 Prototype IDs (25) 500 Alien Tech Used (0) 0 Bonus (3996) 3996 TOTAL SCORE: 17528 Bonus ------- High Alert Combat Kills 1806 Follower Combat Kills 2023 Registered with UFD 300 Met Data Miner 300 Friendly Fire -433 Cogmind --------- Core Integrity 0/1000 Matter 300/300 Energy 100/100 System Corruption 8% Temperature Cool (9) Movement Core (50) Location -5/Upper Caves Parts ------- > --- POWER (2) -------- (None) > --- PROPULSION (5) --- (None) > --- UTILITY (6) ------ Advanced Target Analyzer > --- WEAPON (4) ------- (None) > --- INVENTORY (5) ---- Advanced Cooling System Improved Particle Charger Advanced Shield Generator Overtuned Beamcaster Heavy Plasma Cannon Peak State ------------ > --- POWER ------------ Neutrino Core Neutrino Core > --- PROPULSION ------- Light Armored Exoskeleton Light Armored Exoskeleton Enhanced Armored Leg > --- UTILITY ---------- Experimental Heat Sink Experimental Heat Sink Experimental Heat Sink Large Storage Unit Tactical Coordination Suite Improved Particle Charger > --- WEAPON ----------- Heavy Laser Heavy Laser Wave Gun Heavy Plasma Cannon > --- INVENTORY -------- Improved Deuterium Engine Improved Cryofiber Web Improved Cryofiber Web Advanced Heat Sink Experimental Heat Sink Experimental Heat Sink Improved Signal Interpreter Improved Particle Charger A0-MCA's Component Scanner Overtuned Beamcaster Improved Plasma Cutter CPS Tube DRS Beacon [Rating: 93] Favorites ----------- Power Cooled Ion Engine Engine Cooled Ion Engine Power Core Neutrino Core Propulsion Armored Leg Treads Light Treads Leg Armored Leg Wheel Overtuned Huge Scrapsphere Hover Unit Hover Unit Utility Advanced Heat Sink Device Advanced Heat Sink Storage Large Storage Unit Processor Advanced Target Analyzer Protection Reactive Plating Weapon Improved Medium Laser Energy Gun Improved Medium Laser Energy Cannon Heavy Plasma Cannon Ballistic Gun Assault Rifle Ballistic Cannon Light Cannon Launcher Long-range Missile Launcher Special Weapon Plasma Flamer Build | -11 -10 -9 -9 -9 -9 -6 -6 -6 -6 -5 -5 -5 -5 ------- Run | Yrd Mat Mat Sto Rec Scr Fac Low Low Dat Pro Fac Upp Upp Slots Evolved 10 | . . 2 . . . 6 . . . . 2 . . Power 1 | . . . . . . 1 . . . . . . . Propulsion 3 | . . 1 . . . 1 . . . . 1 . . Utility 4 | . . 1 . . . 2 . . . . 1 . . Weapon 2 | . . . . . . 2 . . . . . . . Parts Attached 228 | 8 14 16 18 2 14 45 2 16 4 7 63 8 11 Power 19 | 1 1 2 2 . . 5 . 1 . 1 5 1 . Engine 15 | 1 1 2 2 . . 5 . 1 . . 2 1 . Core 4 | . . . . . . . . . . 1 3 . . Reactor . | . . . . . . . . . . . . . . Propulsion 49 | 3 8 6 5 . 2 8 . 3 . 2 11 1 . Treads 1 | 1 . . . . . . . . . . . . . Leg 44 | 2 5 6 5 . 2 8 . 3 . 1 11 1 . Wheel 1 | . . . . . . . . . . 1 . . . Hover 3 | . 3 . . . . . . . . . . . . Flight . | . . . . . . . . . . . . . . Utility 91 | 1 3 7 6 2 7 14 . 9 . 2 32 3 5 Device 69 | . 1 1 4 2 4 13 . 8 . 2 29 2 3 Storage 6 | 1 1 2 . . 1 . . . . . 1 . . Processor 5 | . . . . . . 1 . . . . 2 . 2 Hackware . | . . . . . . . . . . . . . . Protection 11 | . 1 4 2 . 2 . . 1 . . . 1 . Artifact . | . . . . . . . . . . . . . . Weapon 69 | 3 2 1 5 . 5 18 2 3 4 2 15 3 6 Energy Gun 47 | 1 . . 4 . 3 15 1 2 3 2 10 2 4 Energy Cannon 6 | . . . . . . 1 1 1 1 . 1 1 . Ballistic Gun 3 | 2 . . . . 1 . . . . . . . . Ballistic Cannon 3 | . 2 1 . . . . . . . . . . . Launcher 8 | . . . 1 . 1 2 . . . . 4 . . Special Weapon 2 | . . . . . . . . . . . . . 2 Impact Weapon . | . . . . . . . . . . . . . . Slashing Weapon . | . . . . . . . . . . . . . . Piercing Weapon . | . . . . . . . . . . . . . . Special Melee Weapon . | . . . . . . . . . . . . . . Unidentified Prototypes 3 | . . . . . . 1 . . . . 2 . . Corrupted Parts 1 | . . . . . . . . . . 1 . . . System Corruption 7 | . . . . . . . . . . 7 . . . Parts Lost 51 | . 1 1 4 2 . 2 . 4 . 2 13 7 15 Power 8 | . . . . . . 1 . 1 . 1 3 1 1 Propulsion 10 | . . . 1 . . . . 1 . . 3 1 4 Utility 15 | . . 1 1 2 . . . 1 . . 3 2 5 Weapon 18 | . 1 . 2 . . 1 . 1 . 1 4 3 5 Highest Loss Streak 14 | . 1 1 3 1 . 1 . 2 . 1 4 4 14 To Critical Strikes . | . . . . . . . . . . . . . . Average Slot Usage (%) 93 | . 93 98 99 95 99 91 93 88 70 89 92 83 75 Engine 9 | . 14 11 11 11 11 12 13 9 13 11 2 5 2 Core 1 | . . . . . . . . . . . 6 . . Leg 25 | . 20 33 32 33 33 20 20 20 20 19 22 22 19 Device 19 | . 6 7 10 15 11 25 26 22 26 26 28 25 20 Storage 8 | . 14 11 11 11 11 6 6 6 6 6 5 5 4 Protection 4 | . 2 13 11 3 10 . . 2 . . . 2 4 Energy Gun 18 | . . . 9 20 21 25 26 23 3 24 20 14 16 Ballistic Gun 1 | . 19 . . . . . . . . . . . . Ballistic Cannon 2 | . 7 22 12 . . . . . . . . . . Peak Build Rating 93 | 6 8 14 18 19 34 74 71 72 71 82 93 88 82 Average Rating 50 | 3 7 11 15 17 29 64 70 67 56 72 87 76 72 On Entrance 43 | . 6 8 13 18 15 33 71 71 72 71 78 88 61 Naked Turns . | . . . . . . . . . . . . . . Heaviest Build 82 | 12 17 28 35 28 47 68 61 72 67 71 82 72 61 Greatest Support 86 | 20 20 30 33 33 47 66 66 66 66 66 86 80 80 Greatest Overweight (x) 1 | . . . 1 . 1 1 . 1 1 1 1 1 1 Average Overweight (x) . | . . . . . . . . . . . . . . Largest Inventory Capacity 15 | 8 8 10 10 10 15 15 15 15 15 15 15 15 15 Average Capacity 13 | 6 8 9 10 10 13 15 15 15 15 15 15 15 14 Most Carried 15 | 8 8 10 10 10 15 15 15 15 15 15 15 13 15 Average Carried 12 | 4 7 8 9 9 13 14 15 14 14 14 14 9 11 Final Capacity 15 | 8 8 10 10 10 15 15 15 15 15 15 15 15 5 Final Carried 15 | 6 8 10 10 10 15 15 15 15 13 15 12 13 5 Class Distribution -------------------- 25% | Commander-Mutant 21% | Scavenger-Gunner 11% | Tank 11% | Scavenger-Mutant 10% | Mutant 9% | Scavenger-Tank 4% | Commander-Tank 3% | Gunner Dominant Class ---------------- Mutant | -10/Materials Scavenger-Mutant | -9/Materials Scavenger-Mutant | -9/Storage Commander-Mutant | -9/Recycling Commander-Mutant | -9/Scraptown Scavenger-Tank | -6/Factory Tank | -6/Lower Caves Tank | -6/Lower Caves Scavenger-Mutant | -6/Data Miner Scavenger-Gunner | -5/Proximity Caves Scavenger-Gunner | -5/Factory Scavenger-Gunner | -5/Upper Caves Scavenger-Tank | -5/Upper Caves Resources | -11 -10 -9 -9 -9 -9 -6 -6 -6 -6 -5 -5 -5 -5 ----------- Run | Yrd Mat Mat Sto Rec Scr Fac Low Low Dat Pro Fac Upp Upp Matter Collected 5145 | 213 547 592 526 65 60 748 42 1049 . 133 947 99 124 Remotely . | . . . . . . . . . . . . . . Salvage Created 8015 | . 702 634 704 287 . 2942 . 378 . 319 1558 491 . Parts 365 | . 52 49 38 12 . 98 . 11 . 14 72 19 . Haulers Intercepted 12 | . 2 3 3 . . 3 . . . . 1 . . Recyclers Shooed 10 | . 1 . 1 . . 7 . . . . 1 . . Parts Field Recycled . | . . . . . . . . . . . . . . Retrieved Matter . | . . . . . . . . . . . . . . Parts Self-Destructed 91 | . . . . . . . . 31 . 34 . 22 4 Prevented 1 | . . . . . . . . . . . . 1 . Kills | -11 -10 -9 -9 -9 -9 -6 -6 -6 -6 -5 -5 -5 -5 ------- Run | Yrd Mat Mat Sto Rec Scr Fac Low Low Dat Pro Fac Upp Upp Combat Hostiles Destroyed 140 | . 14 12 15 6 . 35 . 7 . 5 34 12 . Guns 76 | . 12 . 4 6 . 22 . 7 . 4 12 9 . Cannons 34 | . 2 12 11 . . . . . . . 7 2 . AOE 22 | . . . . . . 8 . . . . 14 . . Classes Destroyed 21 | . 7 1 3 1 . 5 . . . . 3 1 . Worker 12 | . 1 4 . . . 4 . . . . 3 . . Builder 6 | . 1 . . . . 5 . . . . . . . Tunneler 3 | . . . . . . 1 . . . . 2 . . Hauler 12 | . 2 3 3 . . 3 . . . . 1 . . Recycler 7 | . 1 1 . . . 5 . . . . . . . Mechanic 1 | . . . 1 . . . . . . . . . . Operator 1 | . . . 1 . . . . . . . . . . Watcher 9 | . 2 2 . . . 4 . . . . 1 . . Swarmer 27 | . 5 4 . . . 3 . 2 . . 5 8 . Saboteur 2 | . . . . . . . . . . . 2 . . Grunt 59 | . 9 4 7 3 . 20 . 4 . . 10 2 . Brawler 3 | . . . . . . 2 . . . . 1 . . Duelist 2 | . . . 1 . . 1 . . . . . . . Protector 1 | . . . . . . . . . . . 1 . . Sentry 22 | . . 4 7 2 . 3 . 1 . . 4 1 . Demolisher 1 | . . . . . . 1 . . . . . . . Specialist 2 | . . . . . . 1 . . . . 1 . . Hunter 5 | . . . . . . 2 . . . 2 1 . . Programmer 14 | . . . . 1 . 2 . . . 3 8 . . Heavy 1 | . . . . . . . . . . . 1 . . Behemoth 1 | . . . . . . . . . . . . 1 . Best Kill Streak 11 | . 5 5 5 2 . 8 . 3 . 2 11 7 . Combat Bots Only 9 | . 3 4 4 2 . 5 . 3 . 2 9 7 . Max Kills in Single Turn 7 | . 1 2 1 1 . 4 . 1 . 1 7 1 . Gunslinging . | . . . . . . . . . . . . . . Exploded 5 | . . . . . . 2 . . . . 5 . . Melee . | . . . . . . . . . . . . . . Uniques/NPCs Destroyed . | . . . . . . . . . . . . . . Combat | -11 -10 -9 -9 -9 -9 -6 -6 -6 -6 -5 -5 -5 -5 -------- Run | Yrd Mat Mat Sto Rec Scr Fac Low Low Dat Pro Fac Upp Upp Hostile Shots Fired 937 | . 74 39 89 23 . 188 6 66 . 23 169 98 162 Missed 326 | . 30 12 20 11 . 71 1 28 . 8 55 36 54 Damage Taken 9582 | . 459 330 917 175 . 1477 53 468 . 282 2268 1088 2065 Core 1435 | . 104 49 100 29 . 77 . 50 . 21 394 107 504 Absorbed by Shields 854 | . . . . . . 518 20 26 . . 290 . . Ignored by Resistances 35 | . . 8 27 . . . . . . . . . . Regen/Repaired (Parts) 516 | . . . . . 459 57 . . . . . . . Core Remaining (%) 73 | 100 58 . . . 55 . . . . 82 . . . Volleys Fired 449 | . 75 43 66 20 . 94 2 24 . 10 87 28 . Largest 4 | . 2 2 2 2 . 4 4 4 . 4 4 4 . Hottest 371 | . 70 70 112 112 . 310 305 305 . 360 371 340 . Shots Fired 1127 | . 148 86 130 40 . 313 8 74 . 30 209 89 . Gun 827 | . 125 . 32 40 . 301 8 64 . 30 161 66 . Cannon 271 | . 23 86 97 . . 1 . 10 . . 31 23 . Launcher 29 | . . . 1 . . 11 . . . . 17 . . Special . | . . . . . . . . . . . . . . Kinetic 331 | . 148 86 97 . . . . . . . . . . Thermal 767 | . . . 32 40 . 302 8 74 . 30 192 89 . Explosive 29 | . . . 1 . . 11 . . . . 17 . . Electromagnetic . | . . . . . . . . . . . . . . Robot Hit Streak 19 | . 8 7 13 10 . 19 4 11 . 10 16 13 . Robot Miss Streak 9 | . 9 5 5 2 . 3 1 3 . 2 4 4 . Penetration Max . | . . . . . . . . . . . . . . Secondary Targets 13 | . 2 . . . . 4 . 4 . 1 2 . . Max Gunslinging Chain 1 | . 1 . . . . 1 . 1 . 1 1 . . Shots Hit Robots 718 | . 74 43 87 27 . 226 6 37 . 24 142 52 . Core Hits 386 | . 29 28 26 10 . 147 1 21 . 14 92 18 . Critical Kills 3 | . 1 . . . . 1 . . . . . 1 . Critical Parts Destroyed 4 | . 1 . . . . 2 . . . . 1 . . Critical Strikes 46 | . 2 2 5 1 . 15 . 4 . . 15 2 . Burn 33 | . . . 2 1 . 12 . 4 . . 13 1 . Meltdown 1 | . . . . . . . . . . . . 1 . Destroy 7 | . 2 . . . . 3 . . . . 2 . . Blast 5 | . . 2 3 . . . . . . . . . . Melee Attacks . | . . . . . . . . . . . . . . Impact . | . . . . . . . . . . . . . . Slashing . | . . . . . . . . . . . . . . Piercing . | . . . . . . . . . . . . . . Sneak Attacks . | . . . . . . . . . . . . . . Combat Hostiles . | . . . . . . . . . . . . . . Follow-up Attacks . | . . . . . . . . . . . . . . Damage Inflicted 21298 | . 1037 831 1524 473 . 6997 172 847 . 705 7291 1351 70 Guns 12722 | . 838 . 460 473 . 5317 172 819 . 705 2938 1000 . Cannons 3213 | . 174 831 1064 . . . . 28 . . 765 351 . Explosions 5200 | . . . . . . 1635 . . . . 3565 . . Melee . | . . . . . . . . . . . . . . Ramming 163 | . 25 . . . . 45 . . . . 23 . 70 Kinetic 2907 | . 1012 831 1064 . . . . . . . . . . Thermal 13892 | . . . 460 473 . 5317 172 847 . 705 4567 1351 . Explosive 4336 | . . . . . . 1635 . . . . 2701 . . Electromagnetic . | . . . . . . . . . . . . . . Impact . | . . . . . . . . . . . . . . Slashing . | . . . . . . . . . . . . . . Piercing . | . . . . . . . . . . . . . . Highest Corruption 14 | . 4 . . 1 . 5 6 6 6 14 4 4 8 Average Corruption 4 | . 1 . . 1 . 4 5 6 6 8 2 4 4 Corruption Purged . | . . . . . . . . . . . . . . Corruption Blocked . | . . . . . . . . . . . . . . Effects 193 | . 6 . . 5 . 27 12 54 3 24 29 22 11 Message Errors 47 | . 2 . . . . 7 4 13 . 6 8 5 2 Matter Fused 45 | . 1 . . . . 6 3 12 1 4 5 8 5 Heat Flow Errors 23 | . 1 . . 1 . 1 1 8 1 2 5 3 . Energy Discharges 20 | . . . . 2 . 1 1 5 1 5 3 1 1 Parts Rejected 4 | . . . . . . 2 . . . . . 1 1 Parts Fused 6 | . 1 . . . . 1 . 2 . . 1 1 . Data Loss (minor) 23 | . . . . . . 1 1 10 . 4 5 1 1 Data Loss (major) 11 | . 1 . . 2 . 3 2 . . 1 1 . 1 Misfires 8 | . . . . . . 1 . 4 . . 1 2 . Weapon Failures 6 | . . . . . . 4 . . . 2 . . . Overload Shots . | . . . . . . . . . . . . . . Overflow Damage 172 | . . . . . . 26 . . . . 146 . . Projectiles 13 | . . . . . . . . . . . 13 . . Explosions 159 | . . . . . . 26 . . . . 133 . . Melee . | . . . . . . . . . . . . . . Knockbacks 11 | . . 4 6 . . . . . . . 1 . . Impact 1 | . . . . . . . . . . . 1 . . Kinetic 9 | . . 3 6 . . . . . . . . . . Secondary 1 | . . 1 . . . . . . . . . . . Self-Inflicted Damage 19 | . . . . . . . . . . . . . 19 Shots . | . . . . . . . . . . . . . . Rammed 11 | . . . . . . . . . . . . . 11 Targets Rammed 26 | . 5 . . . . 5 . . . . 2 . 14 Kicked 15 | . 5 . . . . 5 . . . . 2 . 3 Crushed . | . . . . . . . . . . . . . . Highest Temperature 450 | . 243 137 279 218 . 299 4 15 . 148 450 318 304 Average Temperature 89 | . 38 40 117 47 . 139 4 6 . 75 87 117 142 Received Heat Transfer 2526 | . 153 135 363 69 . 340 . 132 . . 379 114 841 Effects 1 | . . . . . . . . . . . 1 . . Matter Decay 1 | . . . . . . . . . . . 1 . . Siege Activations . | . . . . . . . . . . . . . . Robots Corrupted . | . . . . . . . . . . . . . . Combat Hostiles . | . . . . . . . . . . . . . . Parts Fried . | . . . . . . . . . . . . . . Impact Corruptions . | . . . . . . . . . . . . . . Robots Melted 10 | . . . . . . 6 . . . 1 2 1 . Combat Hostiles 8 | . . . . . . 5 . . . 1 1 1 . Parts Melted 88 | . . . 2 3 . 48 . 2 . 8 23 2 . Heat Transferred 27307 | . . . 1147 1073 . 11727 325 2298 . 1091 7453 2193 . Parts Sabotaged 2 | . . . . . . 2 . . . . . . . Parts Stolen . | . . . . . . . . . . . . . . Parts Stripped . | . . . . . . . . . . . . . . Power Chain Reactions . | . . . . . . . . . . . . . . Alert | -11 -10 -9 -9 -9 -9 -6 -6 -6 -6 -5 -5 -5 -5 ------- Run | Yrd Mat Mat Sto Rec Scr Fac Low Low Dat Pro Fac Upp Upp Peak Influence 1364 | . 180 314 533 328 . 1364 . . . . 1339 . . Initial 207 | . . 27 132 207 . . . . . . 102 . . Average 469 | . 74 186 399 185 . 679 . . . . 660 . . Maximum Alert Level 4 | . . 1 2 1 . 4 . . . . 4 . . Low Security (%) 34 | 100 100 52 7 35 . 16 . . . . 22 . . Level 1 25 | . . 47 37 64 . 14 . . . . 22 . . Level 2 11 | . . . 54 . . 18 . . . . 5 . . Level 3 14 | . . . . . . 31 . . . . 18 . . Level 4 13 | . . . . . . 18 . . . . 30 . . Level 5 . | . . . . . . . . . . . . . . High Security . | . . . . . . . . . . . . . . Max Security . | . . . . . . . . . . . . . . Squads Dispatched 34 | . 2 . 3 . . 18 . . . . 10 . 1 Investigation 5 | . 1 . 1 . . 2 . . . . 1 . . Extermination 6 | . . . . . . 3 . . . . 3 . . Reinforcement 8 | . 1 . . . . 6 . . . . 1 . . Assault 9 | . . . . . . 4 . . . . 4 . 1 Garrison 6 | . . . 2 . . 3 . . . . 1 . . Intercept . | . . . . . . . . . . . . . . Searches Triggered . | . . . . . . . . . . . . . . Data Miner Redirects 2 | . . . . . . . . . . . 2 . . Construction Impeded 3 | . . . . . . 3 . . . . . . . Haulers Reinforced . | . . . . . . . . . . . . . . Active Scanning Responses . | . . . . . . . . . . . . . . Cargo Convoy Interrupts 1 | . . . . . . . . . . . 1 . . Stealth | -11 -10 -9 -9 -9 -9 -6 -6 -6 -6 -5 -5 -5 -5 --------- Run | Yrd Mat Mat Sto Rec Scr Fac Low Low Dat Pro Fac Upp Upp Distress Signals 9 | . 3 1 2 . . 3 . . . . . . . Communications Jammed . | . . . . . . . . . . . . . . Distress Signals . | . . . . . . . . . . . . . . Times Spotted 252 | . 27 19 19 5 . 69 1 16 . 11 50 19 16 Peak Tracking Total 13 | . 5 4 5 2 . 8 1 4 . 4 11 7 13 Tactical Retreats 19 | . 2 . 3 . . 4 . . . . 1 7 2 Traps | -11 -10 -9 -9 -9 -9 -6 -6 -6 -6 -5 -5 -5 -5 ------- Run | Yrd Mat Mat Sto Rec Scr Fac Low Low Dat Pro Fac Upp Upp Traps Triggered 9 | . 4 . 1 . . 1 . . . . 3 . . Indirectly . | . . . . . . . . . . . . . . Trap Hack Attempts . | . . . . . . . . . . . . . . Triggered . | . . . . . . . . . . . . . . Disarmed . | . . . . . . . . . . . . . . Reprogrammed . | . . . . . . . . . . . . . . Reused 1 | . . . . . . . . . . . . 1 . Traps Extracted . | . . . . . . . . . . . . . . Installed 1 | . . . . . . . . . . . . 1 . Triggered 2 | . . . . . . . . 1 . . . 1 . Most Traps Carried 1 | . . . . . . . . . . . . 1 . Machines | -11 -10 -9 -9 -9 -9 -6 -6 -6 -6 -5 -5 -5 -5 ---------- Run | Yrd Mat Mat Sto Rec Scr Fac Low Low Dat Pro Fac Upp Upp Machines Disabled 20 | . 1 1 2 . . 4 . . . . 11 . 1 Max in Single Turn 6 | . 1 1 1 . . 1 . . . . 6 . 1 Garrison Access 2 | . . . . . . 1 . . . . 1 . . Machines Repaired . | . . . . . . . . . . . . . . Machines Dismantled 1 | . . . . . . . . . . . . . 1 Machines Sabotaged . | . . . . . . . . . . . . . . Overloaded Fab Kills . | . . . . . . . . . . . . . . Hacking | -11 -10 -9 -9 -9 -9 -6 -6 -6 -6 -5 -5 -5 -5 --------- Run | Yrd Mat Mat Sto Rec Scr Fac Low Low Dat Pro Fac Upp Upp Machines Accessed 49 | . 9 3 4 10 3 7 . . 4 . 8 . 1 Terminals 23 | . 7 3 4 4 . 2 . . . . 3 . . Fabricators 2 | . . . . . . 1 . . . . 1 . . Repair Stations 3 | . 1 . . . . 1 . . . . 1 . . Recycling Units 10 | . 1 . . 6 . 1 . . . . 2 . . Scanalyzers . | . . . . . . . . . . . . . . Garrison Access 3 | . . . . . . 2 . . . . 1 . . Total Hacks 172 | . 29 7 13 32 20 21 . . 33 . 16 . 1 Successful 106 | . 18 4 4 13 20 9 . . 33 . 4 . 1 Failed 65 | . 11 3 9 18 . 12 . . . . 12 . . Catastrophic 14 | . 4 . 1 3 . 3 . . . . 3 . . Database Lockouts 1 | . . . . 1 . . . . . . . . . Manual 51 | . 9 5 10 14 . 11 . . . . 2 . . Terminals 73 | . 25 7 13 18 . 4 . . . . 6 . . Fabricators 3 | . . . . . . 2 . . . . 1 . . Repair Stations 13 | . 2 . . . . 8 . . . . 3 . . Recycling Units 22 | . 2 . . 14 . 1 . . . . 5 . . Scanalyzers . | . . . . . . . . . . . . . . Garrison Access 7 | . . . . . . 6 . . . . 1 . . Terminal Hacks 79 | . 15 2 2 5 20 . . . 33 . 1 . 1 Record 23 | . . 1 . . 11 . . . 11 . . . . Part Schematic 13 | . . . . . . . . . 13 . . . . Robot Schematic 6 | . . . . . . . . . 6 . . . . Robot Analysis 10 | . 1 . . . 9 . . . . . . . . Prototype ID Bank 11 | . 4 . 1 3 . . . . 3 . . . . Open Door 1 | . . . . . . . . . . . . . 1 Level Access Points 1 | . 1 . . . . . . . . . . . . Branch Access Points 2 | . . 1 . . . . . . . . 1 . . Alert Level 3 | . 3 . . . . . . . . . . . . Unreport Threat 4 | . 2 . . 2 . . . . . . . . . Locate Traps 2 | . 1 . 1 . . . . . . . . . . Security Status 1 | . 1 . . . . . . . . . . . . Hauler Manifests 1 | . 1 . . . . . . . . . . . . Zone Layout 1 | . 1 . . . . . . . . . . . . Fabricator Hacks . | . . . . . . . . . . . . . . Repair Station Hacks 8 | . 1 . . . . 6 . . . . 1 . . Scan Component 5 | . 1 . . . . 3 . . . . 1 . . Repair 3 | . . . . . . 3 . . . . . . . Recycling Unit Hacks 5 | . 1 . . 3 . . . . . . 1 . . Retrieve Components 5 | . 1 . . 3 . . . . . . 1 . . Scanalyzer . | . . . . . . . . . . . . . . Garrison Access Hacks 1 | . . . . . . . . . . . 1 . . Seal Access 1 | . . . . . . . . . . . 1 . . Unauthorized Hacks 13 | . 1 2 2 5 . 3 . . . . . . . Terminals 7 | . 1 2 2 1 . 1 . . . . . . . Botnet 7 | . 1 2 2 1 . 1 . . . . . . . Fabricators . | . . . . . . . . . . . . . . Repair Stations . | . . . . . . . . . . . . . . Recycling Units 5 | . . . . 4 . 1 . . . . . . . Mask 1 | . . . . . . 1 . . . . . . . Tunnel 4 | . . . . 4 . . . . . . . . . Scanalyzers . | . . . . . . . . . . . . . . Garrison Access 1 | . . . . . . 1 . . . . . . . Jam 1 | . . . . . . 1 . . . . . . . Data Cores Recovered 1 | . . . 1 . . . . . . . . . . Used . | . . . . . . . . . . . . . . Hacking Detections 38 | . 9 3 4 10 . 5 . . . . 7 . . Full Trace Events 9 | . 1 . . 6 . 1 . . . . 1 . . Feedback Events 2 | . . . . 1 . . . . . . 1 . . Corruption 2 | . . . . 1 . . . . . . 1 . . Feedback Blocked . | . . . . . . . . . . . . . . Robot Schematics Acquired 6 | . . . . . . . . . 6 . . . . Robots Built . | . . . . . . . . . . . . . . Authchips . | . . . . . . . . . . . . . . Time . | . . . . . . . . . . . . . . Total Robot Build Rating . | . . . . . . . . . . . . . . Part Schematics Acquired 13 | . . . . . . . . . 13 . . . . Parts Built . | . . . . . . . . . . . . . . Authchips . | . . . . . . . . . . . . . . Time . | . . . . . . . . . . . . . . Total Part Build Rating . | . . . . . . . . . . . . . . Parts Repaired 3 | . . . . . . 3 . . . . . . . Time 132 | . . . . . . 132 . . . . . . . Parts Recycled . | . . . . . . . . . . . . . . Recycled Matter . | . . . . . . . . . . . . . . Retrieved Matter . | . . . . . . . . . . . . . . Retrieved Components 7 | . . . . 4 . . . . . . 3 . . Parts Scanalyzed . | . . . . . . . . . . . . . . Part Schematics Acquired . | . . . . . . . . . . . . . . Parts Damaged . | . . . . . . . . . . . . . . Bothacking | -11 -10 -9 -9 -9 -9 -6 -6 -6 -6 -5 -5 -5 -5 ------------ Run | Yrd Mat Mat Sto Rec Scr Fac Low Low Dat Pro Fac Upp Upp Used RIF Installer . | . . . . . . . . . . . . . . Robots Hacked . | . . . . . . . . . . . . . . Non-combat . | . . . . . . . . . . . . . . Combat . | . . . . . . . . . . . . . . Robot Hacks Applied . | . . . . . . . . . . . . . . Relay Couplers Released . | . . . . . . . . . . . . . . Fabnet Peak Effective % . | . . . . . . . . . . . . . . Robots Rewired 17 | . . . . 17 . . . . . . . . . Allies Hacked 1 | . . . . . . . . . . . 1 . . Hacks Repelled . | . . . . . . . . . . . . . . Allies | -11 -10 -9 -9 -9 -9 -6 -6 -6 -6 -5 -5 -5 -5 -------- Run | Yrd Mat Mat Sto Rec Scr Fac Low Low Dat Pro Fac Upp Upp Total Allies 23 | . . . . 17 . 1 . 5 . . . . . Largest Group 17 | . . . . 17 17 17 1 6 6 6 3 . . Highest-Rated Group 296 | . . . . 255 255 255 61 296 296 296 155 . . Highest-Rated Ally 61 | . . . . 34 34 61 61 61 61 61 61 . . Total Orders 6 | . . . . . . . . 2 . . 4 . . STAY 1 | . . . . . . . . 1 . . . . . ROAM 1 | . . . . . . . . . . . 1 . . FOLLOW 1 | . . . . . . . . 1 . . . . . EXPLORE 3 | . . . . . . . . . . . 3 . . Ally Attacks 195 | . . . . . . 72 2 29 . 46 46 . . Total Damage 6878 | . . . . . . 2676 129 1042 . 1115 1916 . . Kills 60 | . . . . . . 26 1 9 . 7 17 . . Allies Corrupted 1 | . . . . . . 1 . . . . . . . Allies Melted . | . . . . . . . . . . . . . . Intel | -11 -10 -9 -9 -9 -9 -6 -6 -6 -6 -5 -5 -5 -5 ------- Run | Yrd Mat Mat Sto Rec Scr Fac Low Low Dat Pro Fac Upp Upp Robot Analysis Total 10 | . 1 . . . 9 . . . . . . . . Derelict Logs Recovered 6 | . . . . . . . 1 2 . 1 . 1 1 Drone Launches 3 | . . . . . . . . . . . 3 . . Drone Recoveries 1 | . . . . . . . . . . . 1 . . Exploration | -11 -10 -9 -9 -9 -9 -6 -6 -6 -6 -5 -5 -5 -5 ------------- Run | Yrd Mat Mat Sto Rec Scr Fac Low Low Dat Pro Fac Upp Upp Turns Passed 16470 | 68 1039 772 692 839 3663 2454 440 2013 136 752 2247 942 413 Spaces Moved 10717 | 44 713 450 302 477 2923 1353 329 1202 92 526 1368 636 302 Core 37 | 10 . . . . . . . . . . . . 27 Treads 8 | 8 . . . . . . . . . . . . . Legs 10467 | 26 508 450 302 477 2923 1353 329 1202 92 526 1368 636 275 Wheels . | . . . . . . . . . . . . . . Hover 205 | . 205 . . . . . . . . . . . . Flight . | . . . . . . . . . . . . . . Fastest Speed 50 | 50 56 120 120 120 120 120 126 126 126 126 125 125 50 Average Speed 125 | 111 101 120 135 120 121 126 126 144 132 132 126 125 118 Slowest Speed 220 | 160 120 120 190 120 190 209 126 209 209 209 220 209 190 Overloaded Moves . | . . . . . . . . . . . . . . Propulsion Burnouts . | . . . . . . . . . . . . . . Robots Hopped . | . . . . . . . . . . . . . . Cave-ins Triggered . | . . . . . . . . . . . . . . Exploration Rate (%) 58 | 5 94 43 52 83 94 26 50 90 68 68 33 62 55 Regions Visited 13 Branch Regions 9 Pre-discovered Areas 7 | . . . . 4 . . 1 . 1 . . 1 . Known Exits Taken 4 | . 1 1 . . . . . . . 1 1 . . Unknown Exits Taken 9 | 1 . . 1 1 1 1 1 1 1 . . 1 . Scrap Searched 18 | . . . . . 3 . 3 4 . 3 . 2 3 Spaces Dug 23 | . . . . . . 10 . 1 . . 12 . . Terrain Destroyed 321 | . . . 12 . . 68 . 3 . 2 223 13 . Melee . | . . . . . . . . . . . . . . Projectile 33 | . . . . . . 2 . 3 . 2 13 13 . AOE 288 | . . . 12 . . 66 . . . . 210 . . Terrain Rammed . | . . . . . . . . . . . . . . Walls Destroyed . | . . . . . . . . . . . . . . Machines Disabled . | . . . . . . . . . . . . . . Actions | -11 -10 -9 -9 -9 -9 -6 -6 -6 -6 -5 -5 -5 -5 --------- Run | Yrd Mat Mat Sto Rec Scr Fac Low Low Dat Pro Fac Upp Upp Total 12853 | 61 882 605 456 705 3022 1879 348 1421 108 560 1727 724 355 Wait 1025 | . 46 67 55 51 63 324 15 168 9 9 159 45 14 Move 10704 | 43 712 449 301 476 2922 1352 328 1201 91 525 1367 635 302 Hop . | . . . . . . . . . . . . . . Pick Up 119 | 9 14 13 6 1 11 27 . 6 . 3 21 2 6 Fast Attach 62 | 3 2 2 . 1 5 12 1 4 2 5 20 3 2 Attach 57 | 4 1 2 4 1 1 13 . 4 2 . 14 4 7 Detach 10 | 1 . 1 . 1 . 1 . . . 1 1 4 . Swap 112 | 1 11 12 14 . 11 20 1 8 . 2 29 1 2 Drop 131 | . 16 16 10 1 9 31 1 6 4 5 27 1 4 Fire 449 | . 75 43 66 20 . 94 2 24 . 10 87 28 . Melee . | . . . . . . . . . . . . . . Ram 11 | . . . . . . . . . . . . . 11 Kick 15 | . 5 . . . . 5 . . . . 2 . 3 Crush . | . . . . . . . . . . . . . . Escape Stasis . | . . . . . . . . . . . . . . Rewire 153 | . . . . 153 . . . . . . . . . Trap 1 | . . . . . . . . . . . . 1 . Miscellaneous 4 | . . . . . . . . . . . . . 4 Route ------- -11/Scrapyard -10/Materials (discovered 5 exits: *Mat x3 / [*Min x2]) -9/Materials (discovered 3 exits: Min / *Sto x2) -9/Storage -9/Recycling (discovered 2 exits: [*Fac] / *Scr) -9/Scraptown (discovered 2 exits: *Fac x2) -6/Factory (discovered 2 exits: *Fac / [*Low]) -6/Lower Caves -6/Lower Caves (discovered 2 exits: *Fac / *Dat) -6/Data Miner -5/Proximity Caves -5/Factory (discovered 3 exits: Fac / *Upp x2) -5/Upper Caves -5/Upper Caves History --------- Turn | Location | Event 11 | -11/Scrapyard | Discovered new exit (range 16) 69 | -11/Scrapyard | Entered Materials 300 | -10/Materials | Build established: Mutant 478 | -10/Materials | Discovered new exit (range 8) 485 | -10/Materials | Discovered new exit (range 16) 561 | -10/Materials | Discovered new exit (range 8) 592 | -10/Materials | Identified exit to Materials 1108 | -10/Materials | Entered another Materials area 1108 | -9/Materials | Evolved 2 slots: Propulsion x1, Utility x1 1123 | -9/Materials | Identified exit to Mines 1123 | -9/Materials | Identified exit to Storage 1577 | -9/Materials | Build established: Scavenger-Mutant 1880 | -9/Materials | Entered Storage 2167 | -9/Storage | Garrison activated, responded to threat 2267 | -9/Storage | Garrison activated, responded to threat 2313 | -9/Storage | Lost 3 parts (1u2w) 2568 | -9/Storage | Used back door to open Recycling access 2568 | -9/Storage | Discovered new exit (range 5) 2572 | -9/Storage | Entered Recycling 2612 | -9/Recycling | Scanned before Scraplab entrance 3163 | -9/Recycling | Discovered new exit (range 15) 3243 | -9/Recycling | Build established: Commander-Mutant 3352 | -9/Recycling | Entered Scraplab 3362 | -9/Recycling | Discovered new exit (range 3) 3411 | -9/Recycling | Entered Scraptown 3411 | -9/Scraptown | Accompanied by 17 allies 3411 | -9/Scraptown | System corruption cleaned by C-Scrubber 3591 | -9/Scraptown | Visited Awakened 3632 | -9/Scraptown | Visited Junk Repository 3748 | -9/Scraptown | Discovered new exit (range 9) 4165 | -9/Scraptown | Visited CR-KLE's Repair Center 4183 | -9/Scraptown | CR-KLE repaired 7 parts 4384 | -9/Scraptown | Visited UFD Registry 4384 | -9/Scraptown | Registered with UFD as "Metalparser" 4432 | -9/Scraptown | Visited Analyses Database 4466 | -9/Scraptown | Visited Scrapoid Pod Storage 4498 | -9/Scraptown | Visited Junk Repository 4545 | -9/Scraptown | Visited A0-MCA Data Center 4552 | -9/Scraptown | Given a B+ rating by A0-MCA 4556 | -9/Scraptown | Found A0-MCA's Component Scanner 4594 | -9/Scraptown | Visited LU-1G1's Boring Crew 4632 | -9/Scraptown | Visited Botcube Research 4641 | -9/Scraptown | Found Botcube 4664 | -9/Scraptown | Visited Supply Room 4693 | -9/Scraptown | Visited Scrap Suit Storage 4771 | -9/Scraptown | Visited Cave Peace 4800 | -9/Scraptown | Visited Red Mages 4828 | -9/Scraptown | Found Relay Coupler [Proto] 5052 | -9/Scraptown | Visited Comm Corps 5163 | -9/Scraptown | Visited Shadow of the Wyrm 5484 | -9/Scraptown | Visited Derelict Rescue Squad 5491 | -9/Scraptown | Found DRS Beacon 5519 | -9/Scraptown | Visited Cartography Club 6955 | -9/Scraptown | Found Scrapoid Pod 7008 | -9/Scraptown | Discovered new exit (range 5) 7074 | -9/Scraptown | Entered Factory 7074 | -6/Factory | Accompanied by 17 allies 7074 | -6/Factory | Evolved 6 slots: Power x1, Propulsion x1, Utility x2, Weapon x2 7639 | -6/Factory | Repaired Imp. Shield Generator 7692 | -6/Factory | Repaired Imp. Cryofiber Web 7731 | -6/Factory | Repaired Particle Charger 7868 | -6/Factory | Discovered new exit (range 16) 7911 | -6/Factory | Identified exit to Factory 7945 | -6/Factory | Build established: Commander-Tank 8155 | -6/Factory | Lost 6 allies 8232 | -6/Factory | Garrison activated, responded to threat 8353 | -6/Factory | Discovered new exit (range 16) 8419 | -6/Factory | Build established: Tank 8474 | -6/Factory | First assault squad dispatched 9033 | -6/Factory | Build established: Scavenger-Tank 9467 | -6/Factory | Botcube activated 9487 | -6/Factory | Botcube completed mutation into legged form, armed with 2 cannons. 9528 | -6/Factory | Entered Lower Caves 9528 | -6/Lower Caves | Accompanied by 1 ally 9529 | -6/Lower Caves | Encountered a Warlord checkpoint 9583 | -6/Lower Caves | Build established: Tank 9947 | -6/Lower Caves | Discovered new exit (range 12) 9968 | -6/Lower Caves | Entered another Lower Caves area 9968 | -6/Lower Caves | Accompanied by 1 ally 10143 | -6/Lower Caves | Attracted the attention of an 0b10 checkpoint 10508 | -6/Lower Caves | Spotted B-75 Beast 10521 | -6/Lower Caves | Discovered exit to Factory (range 9) 10902 | -6/Lower Caves | Learned Factory stockpile data 11162 | -6/Lower Caves | Build established: Gunner 11386 | -6/Lower Caves | Scrapoid Pod released 06L05-D (x5) 11675 | -6/Lower Caves | Build established: Scavenger-Gunner 11853 | -6/Lower Caves | Learned 8 Factory zone layouts 11952 | -6/Lower Caves | Discovered new exit (range 13) 11981 | -6/Lower Caves | Entered Data Miner 11981 | -6/Data Miner | Accompanied by 6 allies 11984 | -6/Data Miner | Discovered new exit (range 6) 12007 | -6/Data Miner | Met Data Miner 12030 | -6/Data Miner | Learned location of Section 7 (-2) 12030 | -6/Data Miner | Acquired the access code to Warlord's prototype stash 12053 | -6/Data Miner | Received God Mode back door access code from Data Miner 12117 | -6/Data Miner | Entered Proximity Caves 12117 | -5/Proximity Caves | Accompanied by 6 allies 12310 | -5/Proximity Caves | P-70 Sage assimilated allied 06L03-D 12601 | -5/Proximity Caves | System corruption reached 10% 12687 | -5/Proximity Caves | Learned location of 1 exit from Factory 12693 | -5/Proximity Caves | Discovered exit to Factory (range 15) 12727 | -5/Proximity Caves | Spotted B-75 Beast 12730 | -5/Proximity Caves | Allies destroyed B-75 Beast 12869 | -5/Proximity Caves | Entered Factory 12869 | -5/Factory | Accompanied by 3 allies 12869 | -5/Factory | Evolved 2 slots: Propulsion x1, Utility x1 12870 | -5/Factory | Identified exit to Factory 12915 | -5/Factory | Discovered new exit (range 40) 13180 | -5/Factory | P-70 Sage assimilated allied 06L05-D 13595 | -5/Factory | Incoming investigation squad redirected 13840 | -5/Factory | Spotted B-75 Beast 13849 | -5/Factory | Allies destroyed B-75 Beast 13859 | -5/Factory | Cargo convoy interrupted 13885 | -5/Factory | Garrison activated, responded to threat 14069 | -5/Factory | First assault squad dispatched 14315 | -5/Factory | Build established: Scavenger-Tank 14395 | -5/Factory | Incoming assault squad redirected 14440 | -5/Factory | Lost 4 parts (1p1n1u1w) 14446 | -5/Factory | Destroyed 9 combat bots 14679 | -5/Factory | Build established: Scavenger-Gunner 14821 | -5/Factory | Lost 3 parts (1p1n1u) 14895 | -5/Factory | Identified exit to Upper Caves 15116 | -5/Factory | Entered Upper Caves 15172 | -5/Upper Caves | Destroyed 7 combat bots 15179 | -5/Upper Caves | Lost 4 parts (1p1u2w) 15470 | -5/Upper Caves | Attracted the attention of an 0b10 outpost 15597 | -5/Upper Caves | Attracted the attention of an 0b10 checkpoint 15684 | -5/Upper Caves | Spotted B-75 Beast 15768 | -5/Upper Caves | Core integrity fell below 50% 15805 | -5/Upper Caves | Destroyed B-75 Beast 15936 | -5/Upper Caves | Encountered a Warlord checkpoint 16041 | -5/Upper Caves | Discovered new exit (range 10) 16058 | -5/Upper Caves | Entered another Upper Caves area 16317 | -5/Upper Caves | Attracted the attention of an 0b10 checkpoint 16333 | -5/Upper Caves | Attracted the attention of an 0b10 outpost 16348 | -5/Upper Caves | Activated DRS Beacon 16369 | -5/Upper Caves | Build established: Scavenger-Tank 16397 | -5/Upper Caves | Spotted B-75 Beast 16398 | -5/Upper Caves | Learned location of 1 exit from Proximity Caves 16400 | -5/Upper Caves | Lost 3 allies 16455 | -5/Upper Caves | Acquired the password to a Derelict Tinkerer's latest research 16460 | -5/Upper Caves | Core integrity fell below 20% 16471 | -5/Upper Caves | Destroyed by G-50 Soldier with Heavy Laser Last Messages --------------- 16455_ Imp. Plasma Cutter destroyed. 16461_ Slammed into G-50 Soldier. 16462_ System corrupted: Substantial component data lost. 16462_ Slammed into G-50 Soldier. 16462_ Destabilizing: System interference. 16462_ A0-MCA's Component Scanner temporarily disabled. 16462_ Adv. Target Analyzer temporarily disabled. 16463_ Slammed into G-50 Soldier. 16464_ Slammed into S-27 Virus. 16465_ Slammed into Y-64 Sentinel. 16466_ Slammed into G-50 Soldier. 16467_ Imp. Cryofiber Web destroyed. 16468_ Slammed into G-50 Soldier. 16468_ A0-MCA's Component Scanner destroyed. 16468_ System corrupted by crushing effect (+4). 16469_ Slammed into B-60 Warrior. 16470_ Slammed into G-50 Soldier. Map ----- +----------------------------------------------------+ | | | | | | | | | ?????????????????????????????????????????????????? | | ?????????????????????????????????????????????????? | | ?????????????????????????????????????????????????? | | ?????????????????????????????????????????????????? | | ?????????????????????????????????????????????????? | | ?????????????????????????????????????????????????? | | ?????????????????????????????????????????????????? | | ?????????????????????????????????????????????????? | | ?????????????????????????????????????????????????? | | ?????????????????????????????????????????????????? | | ?????????????????????????????????????????????????? | | ?????????????????????????????????????????????????? | | ?????????????????????????????????????????????????? | | ?????????????????????????????????????????????????? | | ???????#####?????????????????????????????????????? | | ???????# ##????????????????????????????????????? | | ????????# #????????????????????????????????????? | | ??##"??## ##???????????????????????????????????? | | ??#X # #????????????????????????????????#### | | ??#"" ##############?????????????????### # | | ??##"""# %cbg#????????????????## # | | ???##??# ############@#????????????????# #? | | ???????#######??????????#g#??###??????????## #? | | ????????????????????????#g##?# ########## ## | | ??????????????????????###BB### | | ??????????????????????# bBB ### | | ??????????????????????# ### | | ??????????????????????# %### | | ??????????????????????## %##%#?# | | ???????????????????????# ##%#?## ### | | ?????????????????????? ### "??## ## #?## | | ?????????????????????# ####?# "#??####?## #### | | ?????????????????????# ?????# "##???????# # | | ?????????????????????#?????## ""#???????## # | | ???????????????????????????#"% %#####????## ## | | ??????????????????????????## %"#""###??# ##? | | ??????????????????????????#% % #?## #?? | | ?????????????????????????# % % #?# #?? | | ?????????????????????????# # #?# ##?? | | ?????????????????????????# # #?# #??? | | ?????????????????????????# # ### ### | | ?????????????????????????# # | | ???????????????????????? # | | ??????????????????????# ######### | | ??????????????????????# ##???????# | | ??????????????????????## ##???????? | +----------------------------------------------------+ Best States ------------- Heat Dissipation 154 Energy Generation 33 Energy Capacity 530 Matter Stores 300 Matter Capacity 300 Sight Range 16 Terrain Scan Density 10 Base Temperature (-) 150 Armor Coverage 375 Resistance: KI 20 Melee Speed Boost 20 Evasion (%) 55 Target Analysis 8 Recoil Reduction 1 Particle Charging 20 Item Schematics ----------------- Combat Drone Bay | -6/Data Miner | Free Lgt. Regenerative Plating | -6/Data Miner | Free Prc. Energy Filter | -6/Data Miner | Free Enh. Flexi-carbon Leg | -6/Data Miner | Free Hvy. Gatling Laser | -6/Data Miner | Free Adv. VSS Leg | -6/Data Miner | Free Imp. Cloaking Device | -6/Data Miner | Free HERF Cannon | -6/Data Miner | Free Imp. Focal Shield | -6/Data Miner | Free Imp. Gyrokinetic Inverter | -6/Data Miner | Free Railgun | -6/Data Miner | Free Imp. Heavy Siege Treads | -6/Data Miner | Free Cmb. Antigrav System | -6/Data Miner | Free Robot Schematics ------------------ L-41 Fighter | -6/Data Miner | Free M-22 Extractor | -6/Data Miner | Free I-47 Archangel | -6/Data Miner | Free Y-54 Guardian | -6/Data Miner | Free A-15 Conveyor | -6/Data Miner | Free R-10 Processor | -6/Data Miner | Free Fabricated ------------ Nothing Alien Tech Used ----------------- None Achievements -------------- None Challenges ------------ None Game ------ Seed DrainedPotentialRefractor Manual? 0 Play Time 02:26:59 Cumulative 205.4 hours Start 2025.01.17 @ 21:17:11 End 2025.01.18 @ 01:21:28 Sessions 3 Manual Loads 0 Difficulty Rogue Special Mode None Game No. 103 Rogue 103 Adventurer 0 Explorer 0 Win Type - Total 4 Types 4/0/0/0/0/0/0/0/0 Lore% 64 Gallery% 76 Achievement% 62 Wizard Run 0 Options --------- Layout 1 ASCII 0 Keyboard 0 Movement Mouse Keybinds 0 Fullscreen 1 Font 24/Smallcaps Map View 50x35 Zoom Use 0% Tactical HUD 1 Map Filters NONE Filters NONE Steam 1 RUN: b347b1c9-7aa7-47c1-8f2e-30d0063cc372